{"text_format":"1","workbook":"xlsx","n_sheets":4,"sheets":["Customer Info","Magic Wood","FiberGlass","TPU"],"not_rendered":{"charts":0,"images":73,"macros":0,"external_links":0,"defined_names":0,"comments":0,"pivot_tables":0},"unopened":[],"bounds":{"document_bytes":16777216,"sheet_cells":100000,"rows_first":2000,"rows_last":500,"rows_between":2000,"halvings":0,"cell_chars":16384,"cell_head_chars":4096},"cells_cut":0,"cells_raw":0,"read":"whole","date_system":"1900"}

{"sheet":"Customer Info","index":0,"n_rows":36,"n_cols":6,"rows_kept":36,"cut":false,"hidden":false,"merged":[[8,2,9,2],[16,2,17,2]]}
[]
[]
[null,null,"Email",null,"kate.gripz@gmail.com"]
[null,null,"Web",null,"www.emberholds.com","2026-05-22"]
[null,null,"Instagram",null,"@emberholds"]
["Shipping Address"]
["Attention"]
["Company"]
["Street"]
[]
["City"]
["State/Province",null,null,null,"Grand Total"]
["Zip",null,null,null,{"$f":"C31+'Magic Wood'!Y4+FiberGlass!Y4+TPU!R4","v":0}]
["Country"]
["Billing Address"]
["Name"]
["Street"]
[]
["City"]
["Sate/Province"]
["Zip"]
["Country"]
[]
["Email"]
["Telephone"]
["VAT#"]
["Payment"]
["Payment Type"]
[]
["Shipping Method"]
["Ship Quote"]
["Bolts"]
["Color Charge"]
[]
["PLEASE NOTE:  Prices are excluding VAT.  Shipping and export/ import charges - FOC for orders over £250 exc. VAT.  "]
["Orders to: kate.gripz@gmail.com"]

{"sheet":"Magic Wood","index":1,"n_rows":22,"n_cols":26,"rows_kept":22,"cut":false,"hidden":false,"merged":[[0,3,3,6],[4,0,4,24],[5,4,6,4],[5,5,6,5],[5,6,6,6],[5,7,6,7],[5,8,6,8],[5,9,6,9],[5,10,6,10],[5,11,6,11],[5,12,6,12],[5,13,6,13],[5,14,6,14],[5,15,6,15],[5,21,6,21],[5,22,6,22],[5,25,6,25],[5,16,6,16],[5,17,6,17],[5,18,6,18],[5,19,6,19],[5,20,6,20],[5,23,6,23],[5,24,6,24]]}
[null,null,null,null,null,null,null,null,null,null,null,null,null,null,null,null,null,null,null,null,null,null,null,"Subtotal",{"$f":"SUM(Y8:Y21)","v":0}]
[null,null,null,null,null,null,null,null,null,null,null,null,null,null,null,null,null,null,null,null,null,null,null,"Discount",{"$f":"Y1*W2","v":0}]
[null,null,null,null,null,null,null,null,null,null,null,null,null,null,null,null,null,null,null,null,null,null,null,"Sub-Total",{"$f":"Y1-Y2","v":0}]
[null,null,null,null,null,null,null,null,null,null,null,null,null,null,null,null,null,null,null,null,null,null,null,"Total",{"$f":"O3+Y3","v":0}]
["SETS"]
[null,null,null,null," Flame Red RAL 3000","Sky Blue RAL 5015","Traffic White RAL 9016","Mint RAL 6027","Ember Turquoise","Zinc Yellow RAL 1018","Dahlia Yellow RAL 1033","Deep Orange RAL 2011","Yellow Green RAL 6018"," Purple S 4050-R60B/M","Black RAL9005","Silver Grey RAL 7001","Deep Rose RAL 4008","Heather Violet RAL 4003","Fluoro Pink","Fluoro Orange","Fluoro Yellow","Fluoro Green","Total Holds","Total Sets","Total Cost","Notes"]
["Set Name","Picture","# Holds","Price"]
["Caroline",null,2,148,null,null,null,null,null,null,null,null,null,null,null,null,null,null,null,null,null,null,{"$f":"X8*C8","v":0},{"$f":"SUM(E8:V8)","v":0},{"$f":"D8*(SUM(E8:R8)+1.15*SUM(S8:V8))","v":0}]
["Clara",null,2,140,null,null,null,null,null,null,null,null,null,null,null,null,null,null,null,null,null,null,0,0,0]
["Hazel",null,2,144,null,null,null,null,null,null,null,null,null,null,null,null,null,null,null,null,null,null,0,0,0]
["Olivia",null,3,295,null,null,null,null,null,null,null,null,null,null,null,null,null,null,null,null,null,null,0,0,0]
["Juliet",null,3,292,null,null,null,null,null,null,null,null,null,null,null,null,null,null,null,null,null,null,0,0,0]
["Grace",null,2,194,null,null,null,null,null,null,null,null,null,null,null,null,null,null,null,null,null,null,0,0,0]
["Daisy",null,2,188,null,null,null,null,null,null,null,null,null,null,null,null,null,null,null,null,null,null,0,0,0]
["Pearl",null,2,415,null,null,null,null,null,null,null,null,null,null,null,null,null,null,null,null,null,null,0,0,0]
["Elsa",null,2,398,null,null,null,null,null,null,null,null,null,null,null,null,null,null,null,null,null,null,0,0,0]
["Audrey",null,2,408,null,null,null,null,null,null,null,null,null,null,null,null,null,null,null,null,null,null,0,0,0]
["Eleanor",null,2,640,null,null,null,null,null,null,null,null,null,null,null,null,null,null,null,null,null,null,0,0,0]
["Penelope",null,2,610,null,null,null,null,null,null,null,null,null,null,null,null,null,null,null,null,null,null,0,0,0]
["Rose",null,2,620,null,null,null,null,null,null,null,null,null,null,null,null,null,null,null,null,null,null,0,0,0]
["Sophia",null,2,590,null,null,null,null,null,null,null,null,null,null,null,null,null,null,null,null,null,null,0,0,0]
[null,null,null,null,null,null,null,null,null,null,null,null,null,null,null,null,null,null,null,null,null,null,{"$f":"SUM(W8:W21)","v":0},0]

{"sheet":"FiberGlass","index":2,"n_rows":48,"n_cols":26,"rows_kept":48,"cut":false,"hidden":false,"merged":[[0,3,3,6],[4,0,4,24],[5,4,6,4],[5,5,6,5],[5,6,6,6],[5,7,6,7],[5,8,6,8],[5,9,6,9],[5,10,6,10],[5,11,6,11],[5,12,6,12],[5,13,6,13],[5,14,6,14],[5,15,6,15],[5,21,6,21],[5,22,6,22],[5,25,6,25],[5,16,6,16],[5,17,6,17],[5,18,6,18],[5,19,6,19],[5,20,6,20],[5,23,6,23],[5,24,6,24]]}
[null,null,null,null,null,null,null,null,null,null,null,null,null,null,null,null,null,null,null,null,null,null,null,"Subtotal",{"$f":"SUM(Y8:Y47)","v":0}]
[null,null,null,null,null,null,null,null,null,null,null,null,null,null,null,null,null,null,null,null,null,null,null,"Discount",{"$f":"Y1*W2","v":0}]
[null,null,null,null,null,null,null,null,null,null,null,null,null,null,null,null,null,null,null,null,null,null,null,"Sub-Total",{"$f":"Y1-Y2","v":0}]
[null,null,null,null,null,null,null,null,null,null,null,null,null,null,null,null,null,null,null,null,null,null,null,"Total",{"$f":"O3+Y3","v":0}]
["SETS"]
[null,null,null,null," Red RAL 3000","Blue RAL 5015","White RAL 9016","Mint RAL 6027","Ember Turquoise","Yellow RAL 1018","Apricot Orange RAL 1033","Deep Orange RAL 2011","Bright Green RAL 6018"," Purple S 4050-R60B/M","Black RAL9005","Grey RAL 7001","Deep Rose RAL 4008","Heather Violet RAL 4003","Fluoro Pink","Fluoro Orange","Fluoro Yellow","Fluoro Green","Total Holds","Total Sets","Total Cost","Notes"]
["Set Name","Picture","# Holds","Price"]
["FFG1",null,1,305,null,null,null,null,null,null,null,null,null,null,null,null,null,null,null,null,null,null,{"$f":"X8*C8","v":0},{"$f":"SUM(E8:V8)","v":0},{"$f":"D8*(SUM(E8:R8)+1.15*SUM(S8:V8))","v":0}]
["FFG2",null,1,298,null,null,null,null,null,null,null,null,null,null,null,null,null,null,null,null,null,null,0,0,0]
["FFG3",null,1,280,null,null,null,null,null,null,null,null,null,null,null,null,null,null,null,null,null,null,0,0,0]
["FFG4",null,1,290,null,null,null,null,null,null,null,null,null,null,null,null,null,null,null,null,null,null,0,0,0]
["FFG5",null,1,170,null,null,null,null,null,null,null,null,null,null,null,null,null,null,null,null,null,null,0,0,0]
["FFG6",null,1,168,null,null,null,null,null,null,null,null,null,null,null,null,null,null,null,null,null,null,0,0,0]
["FFG7",null,1,167,null,null,null,null,null,null,null,null,null,null,null,null,null,null,null,null,null,null,0,0,0]
["FFG8",null,1,172,null,null,null,null,null,null,null,null,null,null,null,null,null,null,null,null,null,null,0,0,0]
["FFG9",null,1,168,null,null,null,null,null,null,null,null,null,null,null,null,null,null,null,null,null,null,0,0,0]
["FFG10",null,1,163,null,null,null,null,null,null,null,null,null,null,null,null,null,null,null,null,null,null,0,0,0]
["FFG11",null,1,240,null,null,null,null,null,null,null,null,null,null,null,null,null,null,null,null,null,null,0,0,0]
["FFG12",null,1,235,null,null,null,null,null,null,null,null,null,null,null,null,null,null,null,null,null,null,0,0,0]
["FFG13",null,1,210,null,null,null,null,null,null,null,null,null,null,null,null,null,null,null,null,null,null,0,0,0]
["FFG14",null,1,215,null,null,null,null,null,null,null,null,null,null,null,null,null,null,null,null,null,null,0,0,0]
["FFG15",null,1,178,null,null,null,null,null,null,null,null,null,null,null,null,null,null,null,null,null,null,0,0,0]
["FFG16",null,1,173,null,null,null,null,null,null,null,null,null,null,null,null,null,null,null,null,null,null,0,0,0]
["FFG17",null,1,178,null,null,null,null,null,null,null,null,null,null,null,null,null,null,null,null,null,null,0,0,0]
["FFG18",null,1,178,null,null,null,null,null,null,null,null,null,null,null,null,null,null,null,null,null,null,0,0,0]
["FFG19",null,1,159,null,null,null,null,null,null,null,null,null,null,null,null,null,null,null,null,null,null,0,0,0]
["FFG20",null,1,161,null,null,null,null,null,null,null,null,null,null,null,null,null,null,null,null,null,null,0,0,0]
["FFG21",null,1,159,null,null,null,null,null,null,null,null,null,null,null,null,null,null,null,null,null,null,0,0,0]
["FFG22",null,1,155,null,null,null,null,null,null,null,null,null,null,null,null,null,null,null,null,null,null,0,0,0]
["FFG23",null,1,152,null,null,null,null,null,null,null,null,null,null,null,null,null,null,null,null,null,null,0,0,0]
["FFG24",null,1,157,null,null,null,null,null,null,null,null,null,null,null,null,null,null,null,null,null,null,0,0,0]
["FFG25",null,1,146,null,null,null,null,null,null,null,null,null,null,null,null,null,null,null,null,null,null,0,0,0]
["FFG26",null,1,145,null,null,null,null,null,null,null,null,null,null,null,null,null,null,null,null,null,null,0,0,0]
["FFG27",null,1,137,null,null,null,null,null,null,null,null,null,null,null,null,null,null,null,null,null,null,0,0,0]
["FFG28",null,1,139,null,null,null,null,null,null,null,null,null,null,null,null,null,null,null,null,null,null,0,0,0]
["FFG29",null,1,135,null,null,null,null,null,null,null,null,null,null,null,null,null,null,null,null,null,null,0,0,0]
["FFG30",null,1,125,null,null,null,null,null,null,null,null,null,null,null,null,null,null,null,null,null,null,0,0,0]
["AMFG1",null,1,254,null,null,null,null,null,null,null,null,null,null,null,null,null,null,null,null,null,null,0,0,0]
["AMFG2",null,1,252,null,null,null,null,null,null,null,null,null,null,null,null,null,null,null,null,null,null,0,0,0]
["AMFG3",null,1,236,null,null,null,null,null,null,null,null,null,null,null,null,null,null,null,null,null,null,0,0,0]
["AMFG4",null,1,232,null,null,null,null,null,null,null,null,null,null,null,null,null,null,null,null,null,null,0,0,0]
["AMFG5",null,1,221,null,null,null,null,null,null,null,null,null,null,null,null,null,null,null,null,null,null,0,0,0]
["AMFG6",null,1,204,null,null,null,null,null,null,null,null,null,null,null,null,null,null,null,null,null,null,0,0,0]
["AMFG7",null,1,198,null,null,null,null,null,null,null,null,null,null,null,null,null,null,null,null,null,null,0,0,0]
["AMFG8",null,1,189,null,null,null,null,null,null,null,null,null,null,null,null,null,null,null,null,null,null,0,0,0]
["AMFG9",null,1,177,null,null,null,null,null,null,null,null,null,null,null,null,null,null,null,null,null,null,0,0,0]
["AMFG10",null,1,169,null,null,null,null,null,null,null,null,null,null,null,null,null,null,null,null,null,null,0,0,0]
[null,null,null,null,null,null,null,null,null,null,null,null,null,null,null,null,null,null,null,null,null,null,{"$f":"SUM(W8:W47)","v":0},{"$f":"SUM(X1:X47)","v":0}]

{"sheet":"TPU","index":3,"n_rows":33,"n_cols":19,"rows_kept":33,"cut":false,"hidden":false,"merged":[[5,13,6,13],[5,14,6,14],[5,15,6,15],[5,16,6,16],[5,18,6,18],[0,3,3,6],[4,0,4,17],[5,4,6,4],[5,5,6,5],[5,6,6,6],[5,7,6,7],[5,8,6,8],[5,17,6,17],[5,9,6,9],[5,10,6,10],[5,11,6,11],[5,12,6,12]]}
[null,null,null,null,null,null,null,null,null,null,1,null,null,null,null,null,"Subtotal",{"$f":"SUM(R8:R32)","v":0}]
[null,null,null,null,null,null,null,null,null,null,null,null,null,null,null,null,"Discount",{"$f":"R1*P2","v":0}]
[null,null,null,null,null,null,null,null,null,null,null,null,null,null,null,null,"Sub-Total",{"$f":"R1-R2","v":0}]
[null,null,null,null,null,null,null,null,null,null,null,null,null,null,null,null,"Total",{"$f":"K3+R3","v":0}]
["SETS"]
[null,null,null,null," Red RAL3010","Blue RAL5015","White RAL9016","Yellow RAL1018","Pure Green RAL6037"," Purple RAL4008","Black RAL9005","Mint RAL 6027","Fluo Green","Fluo Orange","Fluo Pink","Total Holds","Total Sets","Total Cost","Notes"]
["Set Name","Picture","# Holds","Price"]
["FTPU1",null,10,46,null,null,null,null,null,null,null,null,null,null,null,{"$f":"Q8*C8","v":0},{"$f":"SUM(E8:O8)","v":0},{"$f":"Q8*D8","v":0}]
["FTPU2",null,10,48,null,null,null,null,null,null,null,null,null,null,null,0,0,0]
["FTPU3",null,10,49,null,null,null,null,null,null,null,null,null,null,null,0,0,0]
["FTPU4",null,6,72,null,null,null,null,null,null,null,null,null,null,null,0,0,0]
["FTPU5",null,6,69,null,null,null,null,null,null,null,null,null,null,null,0,0,0]
["FTPU6",null,4,64,null,null,null,null,null,null,null,null,null,null,null,0,0,0]
["FTPU7",null,4,67,null,null,null,null,null,null,null,null,null,null,null,0,0,0]
["FTPU8",null,10,52,null,null,null,null,null,null,null,null,null,null,null,0,0,0]
["FTPU9",null,10,58,null,null,null,null,null,null,null,null,null,null,null,0,0,0]
["FTPU10",null,6,65,null,null,null,null,null,null,null,null,null,null,null,0,0,0]
["FTPU11",null,6,76,null,null,null,null,null,null,null,null,null,null,null,0,0,0]
["FTPU12",null,null,null,null,null,null,null,null,null,null,null,null,null,null,0,0,0]
["FTPU13",null,null,null,null,null,null,null,null,null,null,null,null,null,null,0,0,0]
["FTPU14",null,4,95,null,null,null,null,null,null,null,null,null,null,null,0,0,0]
["FTPU15",null,4,91,null,null,null,null,null,null,null,null,null,null,null,0,0,0]
["FTPU16",null,null,null,null,null,null,null,null,null,null,null,null,null,null,0,0,0]
["AMTPU1",null,10,54,null,null,null,null,null,null,null,null,null,null,null,0,0,0]
["AMTPU2",null,6,63,null,null,null,null,null,null,null,null,null,null,null,0,0,0]
["AMTPU3",null,6,65,null,null,null,null,null,null,null,null,null,null,null,0,0,0]
["AMTPU4",null,6,72,null,null,null,null,null,null,null,null,null,null,null,0,0,0]
["AMTPU5",null,4,69,null,null,null,null,null,null,null,null,null,null,null,0,0,0]
["AMTPU6",null,6,129,null,null,null,null,null,null,null,null,null,null,null,0,0,0]
["AMTPU7",null,4,84,null,null,null,null,null,null,null,null,null,null,null,0,0,0]
["AMTPU8",null,4,71,null,null,null,null,null,null,null,null,null,null,null,0,0,0]
["AMTPU9",null,4,79,null,null,null,null,null,null,null,null,null,null,null,0,0,0]
[null,null,null,null,null,null,null,null,null,null,null,null,null,null,null,{"$f":"SUM(P8:P32)","v":0},{"$f":"SUM(Q1:Q32)","v":0}]